bitfinex-derivatives/quotes_BTCF0:USTF0_20250108
["timestamp","ask_amount","ask_price","bid_price","bid_amount"]
[1736352592892,0.3608,95157.0,95143.0,0.352372]
[1736352593098,0.052558,95149.0,95148.0,0.052557]
[1736352594196,0.413358,95149.0,95126.0,0.052569]
[1736352594396,0.3608,95141.0,95126.0,0.052569]
[1736352594589,0.3608,95141.0,95138.0,0.052562]
[1736352594590,0.052562,95139.0,95138.0,0.052562]
[1736352594794,0.3608,95141.0,95140.0,0.052562]
[1736352594996,0.413361,95141.0,95140.0,0.052562]
[1736352595900,0.3608,95141.0,95140.0,0.052562]
[1736352596094,0.052559,95145.0,95144.0,0.052558]
[1736352596288,0.052556,95151.0,95150.0,0.052554]
[1736352597199,0.052548,95166.0,95165.0,0.052547]
[1736352597701,0.48762334,95171.0,95154.0,0.3342]
[1736352597896,0.47116,95171.0,95170.0,0.052545]
[1736352598096,0.47116,95171.0,95160.0,0.15941149]
[1736352598097,0.18716015,95175.0,95171.0,0.052544]
[1736352598305,0.052538,95182.0,95181.0,0.052539]
[1736352598794,0.18716015,95185.0,95170.0,0.17609331]
[1736352598990,0.18716015,95185.0,95184.0,0.052537]
[1736352599600,0.3608,95190.0,95189.0,0.052535]
[1736352601803,0.3608,95206.0,95205.0,0.052526]
[1736352601995,0.3608,95216.0,95215.0,0.05252]
[1736352602503,0.18716015,95223.0,95222.0,0.052516]
[1736352603895,0.37739042,95246.0,95235.0,0.052509]
[1736352604090,0.1,95260.0,95235.0,0.3622]
[1736352604091,0.18811681,95252.0,95235.0,0.3622]
[1736352604299,0.18811681,95252.0,95251.0,0.0525]
[1736352604605,0.18811681,95252.0,95251.0,0.4133]
[1736352605402,0.3608,95259.0,95251.0,0.4133]
[1736352605703,0.052499,95254.0,95251.0,0.4133]
[1736352606093,0.002,95252.0,95251.0,0.4143]
[1736352607203,0.002,95252.0,95251.0,0.0535]
[1736352607204,0.0525,95252.0,95251.0,0.0535]
[1736352607507,0.3628,95259.0,95255.0,0.052498]
[1736352607508,0.415296,95259.0,95255.0,0.052498]
[1736352607807,0.002,95259.0,95258.0,0.052496]
[1736352608396,0.052499,95253.0,95221.0,0.3622]
[1736352608593,0.77296,95259.0,95211.0,0.01612591]
[1736352608594,0.052517,95221.0,95211.0,0.01612591]
[1736352608798,0.413314,95227.0,95214.0,0.05252]
[1736352609107,0.3608,95227.0,95225.0,0.052515]
[1736352609809,0.3608,95238.0,95237.0,0.052508]
[1736352610009,0.3608,95238.0,95228.0,0.24513008]
[1736352610309,0.3608,95230.0,95215.0,0.5811]
[1736352610510,0.3608,95230.0,95216.0,0.052519]
[1736352610705,0.3608,95230.0,95215.0,0.21946]
[1736352610911,0.052517,95221.0,95219.0,0.052518]
[1736352611293,0.052517,95221.0,95215.0,0.2189]
[1736352611294,0.3608,95222.0,95215.0,0.2189]
[1736352611506,0.052519,95217.0,95215.0,0.2189]
[1736352611710,0.052519,95217.0,95215.0,0.27142]
[1736352611906,0.413317,95222.0,95220.0,0.052517]
[1736352612112,0.3608,95222.0,95215.0,0.2199]
[1736352612318,0.052519,95218.0,95215.0,0.2199]
[1736352612505,0.052519,95218.0,95216.0,0.052519]
[1736352612709,0.05252,95216.0,95215.0,0.2199]
[1736352612903,0.3608,95222.0,95203.0,0.3622]
[1736352613098,0.052517,95221.0,95213.0,0.052521]
[1736352613304,0.413321,95214.0,95213.0,0.052521]
[1736352613805,0.052518,95219.0,95217.0,0.052519]
[1736352616912,0.3608,95222.0,95221.0,0.052517]
[1736352617914,0.3608,95233.0,95232.0,0.052511]
[1736352618812,0.3608,95242.0,95241.0,0.052506]
[1736352621001,0.3638,95242.0,95241.0,0.053506]
[1736352621404,0.003,95242.0,95241.0,0.809106]
[1736352621606,0.5175,95275.0,95241.0,0.8807]
[1736352621805,0.01627498,95283.0,95279.0,0.052485]
[1736352624106,0.3608,95267.0,95266.0,0.052492]
[1736352624301,0.3608,95277.0,95276.0,0.052487]
[1736352626511,0.3608,95277.0,95261.0,0.3622]
[1736352626512,0.7216,95277.0,95261.0,0.3622]
[1736352626718,0.3608,95269.0,95261.0,0.3622]
[1736352627019,0.3608,95269.0,95268.0,0.052491]
[1736352629010,0.3608,95269.0,95262.0,0.052494]
[1736352629011,0.052494,95263.0,95262.0,0.052494]
[1736352629521,0.052491,95268.0,95267.0,0.052491]
[1736352629723,0.3608,95269.0,95267.0,0.052491]
[1736352630023,0.3608,95269.0,95268.0,0.001]
[1736352630415,0.3608,95269.0,95267.0,0.052491]
[1736352630824,0.3608,95269.0,95268.0,0.052491]
[1736352632923,0.3608,95269.0,95261.0,0.01489918]
[1736352632924,0.052487,95276.0,95275.0,0.052487]
[1736352633122,0.3608,95277.0,95267.0,0.001]
[1736352633419,0.3608,95277.0,95276.0,0.052487]
[1736352634616,0.3608,95277.0,95267.0,0.001]
[1736352634617,0.052491,95268.0,95267.0,0.001]
[1736352634815,0.413291,95268.0,95267.0,0.001]
[1736352636017,0.413291,95268.0,95267.0,0.052491]
[1736352636616,0.3608,95268.0,95267.0,0.052491]
[1736352636828,0.3608,95268.0,95267.0,0.053491]
[1736352638028,0.11419039,95280.0,95267.0,0.053491]
[1736352638029,0.11419039,95280.0,95279.0,0.052485]
[1736352639323,0.052487,95275.0,95274.0,0.052486]
[1736352640119,0.11419039,95280.0,95269.0,0.5817]
[1736352640424,0.052487,95276.0,95275.0,0.052487]
[1736352642322,0.11419039,95280.0,95269.0,0.58174]
[1736352642526,0.11419039,95280.0,95279.0,0.052485]
[1736352643923,0.16667439,95280.0,95279.0,0.052485]
[1736352644229,0.16667439,95280.0,95279.0,0.053485]
[1736352644420,0.3608,95282.0,95279.0,0.053485]
[1736352644421,0.34487439,95282.0,95279.0,0.053485]
[1736352644620,0.052484,95280.0,95279.0,0.053485]
[1736352644826,0.35904635,95282.0,95279.0,0.001]
[1736352645032,0.41152935,95282.0,95281.0,0.052484]
[1736352646718,0.052484,95280.0,95279.0,0.005]
[1736352646934,0.052484,95280.0,95279.0,0.057485]
[1736352647523,0.052484,95280.0,95279.0,0.052485]
[1736352648216,0.052484,95280.0,95279.0,0.053485]
[1736352649227,0.052484,95280.0,95279.0,0.001]
[1736352650231,0.20827299,95280.0,95279.0,0.001]
[1736352650533,0.052491,95268.0,95267.0,0.052491]
[1736352650723,0.413291,95268.0,95267.0,0.052491]
[1736352652335,0.413291,95268.0,95267.0,0.053491]
[1736352652726,0.42782931,95268.0,95267.0,0.053491]
[1736352653031,0.413291,95268.0,95267.0,0.053491]
[1736352653725,0.3608,95268.0,95267.0,0.053491]
[1736352653930,0.15578899,95272.0,95268.0,0.052491]
[1736352654231,0.56907799,95272.0,95271.0,0.052489]
[1736352654734,0.56907799,95272.0,95271.0,1.552489]
[1736352654935,0.56907799,95272.0,95271.0,0.052489]
[1736352655130,0.413289,95272.0,95271.0,0.052489]
[1736352657326,0.413289,95272.0,95271.0,0.053489]
[1736352657635,0.53919398,95272.0,95271.0,0.053489]
[1736352658533,0.413289,95272.0,95271.0,0.053489]
[1736352658831,0.413289,95272.0,95271.0,0.001]
[1736352659631,0.052495,95261.0,95260.0,0.31333961]
[1736352659833,0.052498,95255.0,95254.0,0.31333961]
[1736352660738,0.052498,95255.0,95254.0,0.36583861]
[1736352660937,0.3608,95261.0,95254.0,0.31333961]
[1736352661125,0.413295,95261.0,95260.0,0.052495]
[1736352664242,0.413295,95261.0,95260.0,0.053495]
[1736352664940,0.413295,95261.0,95260.0,0.001]
[1736352666842,0.413295,95261.0,95260.0,0.053495]
[1736352667044,0.41341684,95261.0,95260.0,0.053495]
[1736352668239,0.41341684,95261.0,95260.0,0.001]
[1736352670540,0.41341684,95261.0,95260.0,0.053495]
[1736352673247,0.41341684,95261.0,95260.0,0.001]
[1736352674645,0.0525,95251.0,95250.0,0.3622]
[1736352674845,0.4133,95251.0,95250.0,0.3622]
[1736352675045,0.4133,95251.0,95250.0,0.414701]
[1736352675343,0.0525,95251.0,95250.0,0.414701]
[1736352676438,0.0525,95251.0,95250.0,0.415701]
[1736352677040,0.0525,95251.0,95250.0,0.053501]
[1736352678350,0.0525,95251.0,95250.0,0.001]
[1736352680947,0.0525,95251.0,95250.0,0.053501]
[1736352681254,0.0525,95251.0,95250.0,0.001]
[1736352686955,0.3608,95253.0,95238.0,0.31333961]
[1736352687161,0.05251,95233.0,95219.0,0.48672615]
[1736352687364,0.413317,95220.0,95219.0,0.43420815]
[1736352688060,0.413317,95220.0,95213.0,0.49679788]
[1736352688257,0.052521,95214.0,95213.0,0.49623788]
[1736352688471,0.052521,95214.0,95202.0,0.61135462]
[1736352688472,0.052527,95203.0,95202.0,0.053087]
[1736352688660,0.052527,95203.0,95202.0,0.052527]
[1736352688661,0.413327,95203.0,95202.0,0.052527]
[1736352689465,0.3608,95203.0,95202.0,0.052527]
[1736352689863,0.3608,95203.0,95202.0,0.053527]
[1736352689864,0.052527,95203.0,95202.0,0.053527]
[1736352690269,0.052527,95203.0,95202.0,0.001]
[1736352690568,0.413327,95203.0,95202.0,0.001]
[1736352690765,0.3608,95203.0,95187.0,0.1731]
[1736352690965,0.052535,95188.0,95187.0,0.225636]
[1736352691170,0.052532,95193.0,95192.0,0.052533]
[1736352691674,0.37508565,95203.0,95187.0,0.1731]
[1736352691873,0.052528,95201.0,95200.0,0.052528]
[1736352692074,0.009,95203.0,95202.0,0.052527]
[1736352692467,0.009,95203.0,95202.0,0.053527]
[1736352692775,0.009,95203.0,95202.0,0.001]
[1736352692776,0.422327,95203.0,95202.0,0.001]
[1736352693074,0.052532,95193.0,95192.0,0.001]
[1736352693285,0.3608,95193.0,95189.0,0.052534]
[1736352693577,0.052534,95190.0,95189.0,0.052534]
[1736352696179,0.061534,95190.0,95189.0,0.053534]
[1736352696381,0.061534,95190.0,95189.0,0.002]
[1736352697878,0.009,95190.0,95189.0,0.002]
[1736352698480,0.061534,95190.0,95189.0,1.502]
[1736352698682,0.122334,95195.0,95189.0,0.002]
[1736352698872,0.052534,95190.0,95189.0,0.002]
[1736352699270,0.052534,95190.0,95189.0,0.054535]
[1736352699664,0.052534,95190.0,95189.0,0.05257333]
[1736352701183,0.052534,95190.0,95189.0,0.053535]
[1736352701482,0.052529,95200.0,95189.0,0.001]
[1736352701680,0.3608,95205.0,95191.0,0.3608]
[1736352701876,0.052528,95202.0,95201.0,0.052528]
[1736352702479,0.3608,95205.0,95204.0,0.052526]
[1736352702784,0.435564,95205.0,95204.0,0.052526]
[1736352703078,0.052531,95196.0,95195.0,0.05253]
[1736352703276,0.48894655,95205.0,95192.0,0.3622]
[1736352703472,0.052532,95193.0,95192.0,0.3622]
[1736352703872,0.052532,95193.0,95192.0,0.414733]
[1736352704479,0.052527,95204.0,95203.0,0.052526]
[1736352704679,0.052531,95198.0,95197.0,0.05253]
[1736352705071,0.052532,95193.0,95192.0,0.3622]
[1736352706983,0.052542,95176.0,95167.0,0.3622]
[1736352707181,0.052542,95176.0,95147.0,0.052557]
[1736352707182,0.052543,95175.0,95164.0,0.052548]
[1736352707374,0.052549,95165.0,95164.0,0.052548]
[1736352708579,0.052549,95165.0,95164.0,0.054548]
[1736352709179,0.052549,95165.0,95164.0,0.052548]
[1736352709385,0.052549,95165.0,95164.0,0.002]
[1736352709589,0.056549,95165.0,95164.0,0.002]
[1736352711487,0.004,95165.0,95164.0,0.054548]
[1736352711989,0.004,95165.0,95164.0,1.554548]
[1736352713285,0.056548,95165.0,95164.0,0.002]
[1736352714186,0.056548,95165.0,95164.0,0.054548]
[1736352715583,0.056548,95165.0,95164.0,0.002]
[1736352716981,0.052564,95137.0,95136.0,0.052563]
[1736352717178,0.052564,95136.0,95135.0,0.3608]
[1736352717782,0.3608,95145.0,95134.0,0.052565]
[1736352717982,0.052565,95133.0,95132.0,0.00056]
[1736352718185,0.3608,95137.0,95131.0,0.18757349]
[1736352718386,0.3608,95137.0,95123.0,0.413371]
[1736352718586,0.052568,95128.0,95123.0,0.3608]
[1736352718893,0.05257,95124.0,95123.0,0.3608]
[1736352719692,0.38294091,95137.0,95136.0,0.052564]
[1736352719693,0.38694091,95137.0,95136.0,0.052564]
[1736352719890,0.5221621,95137.0,95136.0,0.052564]
[1736352720286,0.052568,95131.0,95130.0,0.052567]
[1736352720683,0.5228021,95137.0,95123.0,0.3608]
[1736352720882,0.05257,95124.0,95123.0,0.3608]
[1736352721287,0.05257,95124.0,95123.0,0.413371]
[1736352721496,0.052567,95130.0,95129.0,0.052567]
[1736352722590,0.052564,95136.0,95135.0,0.052564]
[1736352723596,0.12536075,95141.0,95140.0,0.052562]
[1736352723897,0.052561,95142.0,95131.0,0.3608]
[1736352724094,0.052561,95142.0,95141.0,0.052561]
[1736352724596,0.052564,95136.0,95135.0,0.052564]
[1736352724990,0.052566,95132.0,95131.0,0.3608]
[1736352725691,0.05257,95124.0,95123.0,0.3608]
[1736352726083,0.05257,95124.0,95123.0,0.413371]
[1736352726502,0.052574,95119.0,95118.0,0.052574]
[1736352726794,0.052574,95117.0,95116.0,0.1716]
[1736352726984,0.3608,95119.0,95105.0,0.1754]
[1736352727189,0.05258,95106.0,95105.0,0.1754]
[1736352728388,0.052583,95103.0,95102.0,0.052582]
[1736352729794,0.413383,95103.0,95102.0,0.004]
[1736352730400,0.05259,95088.0,95087.0,0.1721]
[1736352730798,0.3608,95093.0,95087.0,0.1721]
[1736352730998,0.413388,95093.0,95087.0,0.1721]
[1736352731302,0.052588,95092.0,95091.0,0.052588]
[1736352732397,0.05259,95088.0,95087.0,0.1731]
[1736352732804,0.05259,95088.0,95087.0,0.1721]
[1736352733503,0.02331408,95092.0,95079.0,0.3608]
[1736352733703,0.07590208,95092.0,95091.0,0.001]
[1736352734400,0.001,95092.0,95090.0,0.052589]
[1736352734700,0.001,95092.0,95091.0,0.1643]
[1736352734907,0.001,95092.0,95090.0,0.052589]
[1736352735397,0.052587,95095.0,95090.0,0.052589]
[1736352735597,0.052587,95095.0,95093.0,0.052588]
[1736352735900,0.052583,95102.0,95100.0,0.052583]
[1736352736403,0.052588,95092.0,95091.0,0.001]
[1736352736899,0.052588,95092.0,95090.0,0.001]
[1736352737103,0.3834543,95103.0,95090.0,0.001]
[1736352737405,0.052588,95092.0,95090.0,0.001]
[1736352737605,0.052588,95092.0,95091.0,0.3608]
[1736352739101,0.061588,95092.0,95091.0,0.3608]
[1736352739698,0.052588,95092.0,95091.0,0.3618]
[1736352740003,0.08366124,95092.0,95091.0,0.3618]
[1736352740197,0.009,95092.0,95091.0,0.3618]
[1736352740596,0.01,95092.0,95091.0,0.414389]
[1736352744506,0.062588,95092.0,95091.0,0.3618]
[1736352745708,0.062588,95092.0,95091.0,0.001]
[1736352746307,0.062588,95092.0,95091.0,0.053589]
[1736352751712,0.062588,95092.0,95091.0,0.001]
[1736352751902,0.062588,95092.0,95069.0,0.3608]
[1736352751903,0.052593,95084.0,95069.0,0.3608]
[1736352752105,0.10590855,95081.0,95063.0,0.3608]
[1736352752407,0.052605,95062.0,95061.0,0.18761201]
[1736352752608,0.052606,95060.0,95059.0,0.24021801]
[1736352753710,0.052603,95066.0,95065.0,0.052602]
[1736352753908,0.07228801,95066.0,95065.0,0.413402]
[1736352754109,0.3608,95078.0,95065.0,0.3608]
[1736352754419,0.052596,95078.0,95077.0,0.052596]
[1736352754811,0.02017246,95080.0,95079.0,0.052595]
[1736352755015,0.18770878,95084.0,95075.0,0.3608]
[1736352755217,0.18770878,95084.0,95083.0,0.413393]
[1736352755411,0.15718642,95087.0,95086.0,0.052591]
[1736352755606,0.052589,95091.0,95090.0,0.052589]
[1736352755811,0.19611883,95099.0,95084.0,1.5]
[1736352756011,0.24870483,95099.0,95098.0,0.052585]
[1736352756815,0.1,95100.0,95099.0,0.052584]
[1736352757017,0.152584,95100.0,95099.0,0.052584]
[1736352757717,0.152074,95100.0,95099.0,0.052584]
[1736352759123,0.162074,95100.0,95099.0,0.052584]
[1736352759524,0.10949,95100.0,95099.0,0.052584]
[1736352760416,0.16065155,95100.0,95099.0,0.052584]
[1736352761820,0.10949,95100.0,95099.0,0.052584]
[1736352763821,0.10949,95100.0,95095.0,0.3608]
[1736352764015,0.052591,95090.0,95085.0,0.1685]
[1736352764214,0.052592,95085.0,95084.0,0.18919008]
[1736352764417,0.052592,95085.0,95084.0,0.18863008]
[1736352764617,0.3631,95089.0,95082.0,0.25150677]
[1736352764830,0.052593,95083.0,95082.0,0.25150677]
[1736352765015,0.052594,95081.0,95080.0,0.3608]
[1736352765329,0.052595,95079.0,95078.0,0.052596]
[1736352765626,0.052597,95076.0,95075.0,0.3608]
[1736352766221,0.052597,95076.0,95075.0,0.413398]
[1736352767015,0.053597,95076.0,95075.0,0.413398]
[1736352767616,0.001,95076.0,95075.0,0.413398]
[1736352768031,0.01,95076.0,95075.0,0.413398]
[1736352771124,0.01,95076.0,95075.0,1.913398]
[1736352771829,0.00948936,95076.0,95075.0,2.16501906]
[1736352773011,0.17856929,95094.0,95093.0,0.052588]
[1736352774227,0.052589,95091.0,95090.0,0.413389]
[1736352774428,0.052589,95091.0,95090.0,0.052589]
[1736352775719,0.061589,95091.0,95090.0,0.052589]
[1736352777244,0.061589,95091.0,95083.0,0.18868927]
[1736352777245,0.052593,95087.0,95086.0,0.052591]
[1736352779026,0.061593,95087.0,95086.0,0.053591]
[1736352780231,0.009,95087.0,95086.0,0.053591]
[1736352780623,0.061591,95087.0,95086.0,0.053591]
[1736352780823,0.061591,95087.0,95086.0,0.001]
[1736352781026,0.061591,95087.0,95086.0,0.18968927]
[1736352781232,0.061591,95087.0,95079.0,0.2515857]
[1736352781233,0.052595,95080.0,95079.0,0.2515857]
[1736352781535,0.413395,95080.0,95079.0,0.2515857]
[1736352782124,0.413395,95080.0,95079.0,0.3041807]
[1736352782125,0.052595,95080.0,95079.0,0.3041807]
[1736352782331,0.052595,95080.0,95069.0,0.31452632]
[1736352782534,0.3608,95081.0,95040.0,0.44089685]
[1736352782535,0.052601,95069.0,95040.0,0.44089685]
[1736352782730,0.052616,95041.0,95040.0,0.44033685]
[1736352783038,0.052619,95039.0,95038.0,0.052618]
[1736352783534,0.052619,95036.0,95035.0,0.49295685]
[1736352784125,0.12586883,95040.0,95039.0,0.052617]
[1736352784437,0.12586883,95040.0,95039.0,0.413417]
[1736352785032,0.12586883,95052.0,95039.0,0.413417]
[1736352785228,0.12586883,95052.0,95051.0,0.413411]
[1736352785430,0.12586883,95052.0,95051.0,1.913411]
[1736352786135,0.18897194,95066.0,95065.0,0.052603]
[1736352786334,0.01778579,95081.0,95074.0,0.052598]
[1736352786534,0.052594,95081.0,95080.0,0.413395]
[1736352786725,0.052594,95081.0,95080.0,1.913395]
[1736352787735,0.18854396,95082.0,95080.0,0.413395]
[1736352787930,0.01785067,95084.0,95080.0,0.3608]
[1736352788233,0.009,95081.0,95080.0,0.3608]
[1736352788436,0.009,95081.0,95080.0,0.413395]
[1736352788628,0.009,95081.0,95080.0,1.913395]
[1736352788829,0.009,95081.0,95080.0,0.413395]
[1736352789336,0.05259,95088.0,95087.0,0.052591]
[1736352790035,0.01798513,95092.0,95080.0,0.72216]
[1736352790335,0.052584,95099.0,95097.0,0.052585]
[1736352790737,0.052587,95095.0,95092.0,0.052588]
[1736352791636,0.052587,95095.0,95093.0,0.052587]
[1736352792430,0.001,95095.0,95093.0,0.052587]
[1736352793429,0.001,95095.0,95093.0,0.061587]
[1736352794031,0.052586,95096.0,95093.0,0.009]
[1736352794232,0.001,95095.0,95094.0,0.052587]
[1736352794432,0.11721009,95100.0,95094.0,0.052587]
[1736352794433,0.09949,95100.0,95094.0,0.413387]
[1736352794630,0.22046726,95131.0,95115.0,0.052575]
[1736352794631,0.052575,95116.0,95115.0,0.052575]
[1736352795238,0.57266726,95130.0,95112.0,0.3608]
[1736352795239,0.052571,95123.0,95119.0,0.052573]
[1736352795641,0.57322727,95130.0,95119.0,0.052573]
[1736352795642,0.01785056,95122.0,95119.0,0.052573]
[1736352795942,0.052569,95127.0,95119.0,0.052573]
[1736352795943,0.40026726,95130.0,95119.0,0.052573]
[1736352796338,0.01807763,95123.0,95119.0,0.052573]
[1736352796542,0.052566,95133.0,95119.0,0.052573]
[1736352796735,0.1693,95142.0,95119.0,0.052573]
[1736352796936,0.22046726,95157.0,95120.0,0.052572]
[1736352797134,0.052562,95139.0,95134.0,0.052564]
[1736352797643,0.052562,95139.0,95130.0,0.15942735]
[1736352797838,0.052562,95139.0,95135.0,0.052564]
[1736352798034,0.052562,95139.0,95136.0,0.052564]
[1736352798236,0.052563,95138.0,95136.0,0.052564]
[1736352799049,0.052563,95138.0,95137.0,0.3608]
[1736352799236,0.3608,95178.0,95137.0,0.3608]
[1736352799434,0.15942735,95190.0,95150.0,0.52022735]
[1736352799435,0.052555,95152.0,95150.0,0.52022735]
[1736352799737,0.1677,95165.0,95150.0,0.3608]
[1736352799944,0.052554,95155.0,95153.0,0.052554]
[1736352800240,0.052555,95152.0,95151.0,1.5]
[1736352800835,0.052555,95152.0,95151.0,1.50064]
[1736352801144,0.052555,95152.0,95150.0,0.052556]
[1736352801640,0.11815219,95160.0,95151.0,1.5]
[1736352801835,0.11815219,95160.0,95154.0,0.052553]
[1736352802036,0.001,95155.0,95154.0,0.052553]
[1736352802733,0.11815219,95160.0,95150.0,0.009]
[1736352802939,0.1,95160.0,95158.0,0.052551]
[1736352803847,0.1,95160.0,95155.0,0.3608]
[1736352804434,0.255,95160.0,95155.0,0.3608]
[1736352804642,0.256,95160.0,95155.0,0.3608]
[1736352805148,0.052553,95156.0,95155.0,0.3698]
[1736352805743,0.052553,95156.0,95155.0,0.3608]
[1736352805937,0.052553,95156.0,95155.0,0.3618]
[1736352806439,0.109,95160.0,95159.0,0.052551]
[1736352807647,0.1,95160.0,95159.0,0.052551]
[1736352808352,0.1,95160.0,95159.0,0.053551]
[1736352809537,0.1682,95178.0,95159.0,0.415351]
[1736352809744,0.052542,95175.0,95170.0,0.3608]
[1736352810051,0.052542,95175.0,95174.0,0.052543]
[1736352810645,0.0181405,95178.0,95177.0,0.052541]
[1736352810944,0.1631,95188.0,95170.0,0.1644]
[1736352810945,0.052544,95173.0,95170.0,0.1644]
[1736352811145,0.052544,95173.0,95172.0,0.052544]
[1736352811745,0.052544,95171.0,95170.0,0.1644]
[1736352811944,0.3608,95179.0,95170.0,0.052545]
[1736352812141,0.3608,95179.0,95177.0,0.001]
[1736352812348,0.052541,95178.0,95177.0,0.001]
[1736352813854,0.052541,95178.0,95177.0,0.052541]
[1736352814356,0.697,95189.0,95179.0,0.05254]
[1736352814357,0.052538,95183.0,95179.0,0.05254]
[1736352814554,0.052538,95183.0,95182.0,0.052538]
[1736352814954,0.01633413,95189.0,95188.0,0.052535]
[1736352815141,0.052533,95192.0,95191.0,0.052533]
[1736352815346,0.052536,95187.0,95186.0,0.052536]
[1736352815545,0.052533,95192.0,95191.0,0.052533]
[1736352816243,0.052533,95192.0,95183.0,0.1696]
[1736352816244,0.17195725,95199.0,95183.0,0.1696]
[1736352816445,0.052531,95197.0,95196.0,0.05253]
[1736352816752,0.2,95200.0,95199.0,0.052529]
[1736352817348,0.252528,95200.0,95199.0,0.052529]
[1736352817556,0.2162474,95200.0,95192.0,1.50064]
[1736352817854,0.052532,95194.0,95193.0,0.052532]
[1736352818052,0.2162474,95200.0,95191.0,0.009]
[1736352818250,0.052533,95192.0,95191.0,0.009]
[1736352818556,0.052533,95192.0,95191.0,0.061533]
[1736352818758,0.052533,95192.0,95191.0,0.052533]
[1736352818956,0.052533,95192.0,95190.0,0.1648]
[1736352819145,0.052537,95184.0,95183.0,0.00068]
[1736352819348,0.05254,95179.0,95178.0,0.052539]
[1736352820551,0.052543,95173.0,95172.0,0.052543]
[1736352821457,0.052542,95175.0,95150.0,0.10608027]
[1736352821767,0.05255,95165.0,95164.0,0.052548]
[1736352822657,0.052549,95166.0,95165.0,0.052547]
[1736352823650,0.3608,95169.0,95156.0,0.15915158]
[1736352823955,0.052551,95161.0,95160.0,0.05255]
[1736352825449,0.055547,95166.0,95165.0,0.052548]
[1736352826555,0.052545,95171.0,95170.0,0.052543]
[1736352826863,0.06758396,95171.0,95170.0,0.052543]
[1736352827060,0.06758396,95171.0,95170.0,1.552543]
[1736352827460,0.052542,95176.0,95175.0,0.052542]
[1736352828858,0.3608,95176.0,95170.0,1.50164]
[1736352829163,0.3608,95176.0,95170.0,0.053545]
[1736352829164,0.052544,95171.0,95170.0,0.053545]
[1736352829956,0.052544,95171.0,95170.0,0.052545]
[1736352830657,0.055544,95171.0,95170.0,0.053545]
[1736352834165,0.003,95171.0,95170.0,0.053545]
[1736352834669,0.003,95171.0,95170.0,0.414345]
[1736352835368,0.15601053,95178.0,95170.0,0.414345]
[1736352835665,0.15601053,95178.0,95177.0,0.052541]
[1736352835864,0.15601053,95178.0,95177.0,1.552541]
[1736352836768,0.052537,95185.0,95184.0,0.052537]
[1736352838069,0.052537,95185.0,95179.0,0.05254]
[1736352838070,0.052541,95180.0,95179.0,0.05254]
[1736352839269,0.2098345,95180.0,95179.0,0.05254]
[1736352840261,0.2098345,95180.0,95179.0,0.05354]
[1736352840966,0.2098345,95180.0,95179.0,0.001]
[1736352841165,0.5706345,95180.0,95179.0,0.001]
[1736352841368,0.052549,95162.0,95155.0,0.3608]
[1736352841672,0.052553,95156.0,95155.0,0.413353]
[1736352841972,0.3608,95162.0,95155.0,0.413353]
[1736352842166,0.052551,95161.0,95156.0,1.5]
[1736352842361,0.052552,95157.0,95156.0,0.052553]
[1736352842667,0.052554,95154.0,95153.0,0.2189]
[1736352843560,0.052554,95154.0,95153.0,0.271454]
[1736352843760,0.052554,95154.0,95153.0,0.2189]
[1736352844166,0.052554,95154.0,95153.0,0.271454]
[1736352844366,0.053554,95154.0,95153.0,0.272454]
[1736352844672,0.053554,95154.0,95153.0,0.053554]
[1736352845961,0.053554,95154.0,95153.0,0.001]
[1736352846169,0.414354,95154.0,95153.0,0.001]
[1736352846572,0.05256,95143.0,95142.0,0.2189]
[1736352846970,0.414354,95154.0,95131.0,0.2189]
[1736352846971,0.052566,95132.0,95131.0,0.2189]
[1736352847165,0.413366,95132.0,95131.0,0.2189]
[1736352848771,0.42863391,95132.0,95131.0,0.2189]
[1736352849369,0.42963391,95132.0,95131.0,0.2199]
[1736352851474,0.42963391,95132.0,95131.0,1.7199]
[1736352852281,0.42963391,95132.0,95131.0,1.772467]
[1736352855674,0.42963391,95132.0,95131.0,0.2199]
[1736352856266,0.42963391,95132.0,95131.0,0.2189]
[1736352856470,0.42963391,95132.0,95119.0,1.6597]
[1736352856471,0.052572,95121.0,95120.0,0.2189]
[1736352856682,0.413372,95121.0,95120.0,0.2189]
[1736352857377,0.413372,95121.0,95120.0,0.20081339]
[1736352857575,0.3608,95121.0,95103.0,0.1572]
[1736352857779,0.413381,95104.0,95103.0,0.1572]
[1736352859578,0.052581,95104.0,95103.0,0.1572]
[1736352860478,0.053581,95104.0,95103.0,0.1582]
[1736352861781,0.053581,95104.0,95103.0,0.001]
[1736352861985,0.06896021,95104.0,95103.0,0.001]
[1736352864482,0.052592,95085.0,95084.0,0.052593]
[1736352864682,0.052589,95091.0,95080.0,0.3608]
[1736352864882,0.052589,95091.0,95090.0,0.052589]
[1736352865283,0.052589,95091.0,95090.0,1.552589]
[1736352866285,0.001,95091.0,95090.0,1.913389]
[1736352866878,0.001,95091.0,95090.0,1.552589]
[1736352867679,0.001,95091.0,95090.0,1.715089]
[1736352868088,0.01,95091.0,95090.0,1.716089]
[1736352872092,0.052577,95113.0,95112.0,0.052577]
[1736352872590,0.05258,95108.0,95107.0,0.052579]
[1736352873487,0.05258,95108.0,95107.0,1.552579]
[1736352873787,0.053578,95113.0,95112.0,0.052577]
[1736352874990,0.052579,95108.0,95107.0,0.054139]
[1736352875194,0.052579,95108.0,95107.0,0.053579]
[1736352875586,0.052579,95108.0,95107.0,0.052579]
[1736352875787,0.052581,95104.0,95103.0,0.00064]